fUSD/lending_fUSD_20250328
["ID","MTS","AMOUNT","RATE_DAILY","PERIOD"]
[356774289,1743155432611,-10028.04134344,0.0003,30]
[356774290,1743155432620,-151.0,0.0003,7]
[356774291,1743155432630,-151.0,0.0003,7]
[356774292,1743155432640,-151.0,0.0003,7]
[356774293,1743155432649,-151.0,0.0003,7]
[356774294,1743155432658,-151.0,0.0003,7]
[356774295,1743155432667,-151.0,0.0003,7]
[356774296,1743155432676,-151.0,0.0003,7]
[356774297,1743155432686,-151.0,0.0003,7]
[356774298,1743155432696,-151.0,0.0003,7]
[356774299,1743155432705,-151.0,0.0003,7]
[356774300,1743155432720,-162.18215287,0.00030293,2]
[356774301,1743155432728,-1553.3687774,0.00030558,2]
[356774302,1743155432738,-1000.0,0.00030699,5]
[356774303,1743155432747,-17693.0090363,0.0003089,2]
[356774304,1743155432757,-13383.3170489,0.000309,2]
[356774305,1743155432766,-353.42,0.0003145,2]
[356774306,1743155432775,-1000.0,0.0003147,2]
[356774307,1743155432784,-1832.59888786,0.0003153,2]
[356774308,1743155432793,-1009.08464132,0.00031611,4]
[356774309,1743155432802,-601.68,0.00031873,2]
[356774310,1743155432811,-345.78,0.00032646,2]
[356774311,1743155432820,-151.0,0.00032876,7]
[356774312,1743155432831,-151.0,0.00032876,7]
[356774313,1743155432841,-151.0,0.00032876,7]
[356774314,1743155432850,-2000.0,0.00033101,4]
[356774315,1743155432859,-1553.3687774,0.00033256,2]
[356774316,1743155432868,-151.0,0.0003333,7]
[356774317,1743155432877,-154.87555,0.0003333,7]
[356774318,1743155432888,-151.0,0.0003333,7]
[356774319,1743155432897,-151.0,0.0003333,7]
[356774320,1743155432906,-151.0,0.00033845,7]
[356774321,1743155432915,-291.433169,0.00033845,7]
[356774322,1743155432923,-291.433169,0.00033845,7]
[356774323,1743155432932,-151.0,0.00033845,7]
[356774324,1743155432941,-151.0,0.00033845,7]
[356774325,1743155432949,-151.0,0.00033845,7]
[356774326,1743155432958,-151.0,0.00033855,7]
[356774327,1743155432967,-151.0,0.00033855,7]
[356774328,1743155432975,-151.0,0.00033855,7]
[356774329,1743155432984,-151.0,0.00033855,7]
[356774330,1743155432993,-254.599568,0.00033855,7]
[356774331,1743155433001,-151.0,0.00033855,7]
[356774332,1743155433010,-151.0,0.00033855,7]
[356774333,1743155433020,-151.0,0.00033855,7]
[356774334,1743155433029,-151.0,0.00033855,7]
[356774335,1743155433039,-151.0,0.00033855,7]
[356774336,1743155433049,-2037.0,0.00033865,2]
[356774337,1743155433058,-643.0,0.00033865,2]
[356774338,1743155433068,-1274.0,0.00033865,2]
[356774339,1743155433077,-788.0,0.00033865,2]
[356774340,1743155433087,-908.0,0.00033865,2]
[356774341,1743155433096,-1432.0,0.00033865,2]
[356774342,1743155433105,-4089.0,0.00033865,2]
[356774343,1743155433114,-336.643,0.00033865,2]
[356774344,1743155433123,-1016.0,0.00033865,2]
[356774345,1743155433135,-151.0,0.00033865,2]
[356774346,1743155433144,-150.0,0.00033865,2]
[356774347,1743155433154,-3945.0,0.00033865,2]
[356774348,1743155433164,-1832.59888786,0.00034066,2]
[356774349,1743155433173,-601.68,0.00034137,2]
[356774350,1743155433183,-151.0,0.00034321,7]
[356774351,1743155433192,-151.0,0.00034321,7]
[356774352,1743155433202,-1147.921999,0.00034321,7]
[356774353,1743155433211,-1147.921999,0.00034321,7]
[356774354,1743155433220,-151.0,0.00034321,7]
[356774355,1743155433230,-17693.0090363,0.00034321,2]
[356774356,1743155433240,-1000.0,0.00034331,2]
[356774357,1743155433250,-150.0,0.00034548,10]
[356774358,1743155433259,-371.99,0.00035068,2]
[356774359,1743155433269,-155.89,0.00035616,2]
[356774360,1743155433278,-1553.3687774,0.00035955,2]
[356774361,1743155433288,-154.0,0.00036,2]
[356774362,1743155433298,-601.68,0.00036401,2]
[356774363,1743155433307,-1832.59888786,0.00036603,2]
[356774364,1743155433316,-162.18215287,0.00036686,2]
[356774365,1743155433326,-151.0,0.00036845,7]
[356774366,1743155433335,-151.0,0.00036845,7]
[356774367,1743155433344,-151.0,0.00036845,7]
[356774368,1743155433354,-151.0,0.00036845,7]
[356774369,1743155433363,-287.271244,0.00036845,7]
[356774370,1743155433372,-151.0,0.00036855,7]
[356774371,1743155433383,-151.0,0.00036855,7]
[356774372,1743155433393,-151.0,0.00036855,7]
[356774373,1743155433402,-293.109996,0.00036855,7]
[356774374,1743155433411,-151.0,0.00036855,7]
[356774375,1743155433420,-151.0,0.00036855,7]
[356774376,1743155433430,-151.0,0.00036855,7]
[356774377,1743155433440,-151.0,0.00036855,7]
[356774378,1743155433449,-643.0,0.00036865,2]
[356774379,1743155433459,-1274.0,0.00036865,2]
[356774380,1743155433468,-788.0,0.00036865,2]
[356774381,1743155433477,-906.0,0.00036865,2]
[356774382,1743155433487,-1393.714,0.00036865,2]
[356774383,1743155433496,-479.093,0.00036865,2]
[356774384,1743155433505,-476.284,0.00036865,2]
[356774385,1743155433519,-151.0,0.00036865,2]
[356774386,1743155433529,-3945.0,0.00036865,2]
[356774387,1743155433538,-154.520477,0.00036933,7]
[356774388,1743155433548,-150.465156,0.000372,103]
[356774389,1743155433558,-189.88,0.00037634,120]
[356774390,1743155433567,-345.78,0.00038443,2]
[356774391,1743155433577,-155.89,0.00038584,2]
[356774392,1743155433586,-1553.3687774,0.00038653,2]
[356774393,1743155433596,-601.68,0.00038665,2]
[356774394,1743155433606,-202.54627554,0.00038699,7]
[356774395,1743155433617,-1832.59888786,0.00039139,2]
[356774396,1743155433626,-640.0,0.00039865,2]
[356774397,1743155433636,-459.527,0.00039865,2]
[356774398,1743155433646,-304.088,0.00039865,2]
[356774399,1743155433655,-151.0,0.00039865,2]
[356774400,1743155433665,-3939.0,0.00039865,2]
[356774401,1743155433674,-17693.0090363,0.0003999,3]
[356774402,1743155433687,-300.0,0.00039999,10]
[356774403,1743155433697,-404.50495018,0.0004,7]
[356774404,1743155433706,-270.48211092,0.0004,7]
[356774405,1743155433715,-6500.0,0.0004,120]
[356774406,1743155433725,-936.78057314,0.0004,7]
[356774407,1743155433734,-5044.09729293,0.0004,7]
[356774408,1743155433745,-13864.77337985,0.0004,120]
[356774409,1743155433755,-150.24,0.0004,15]
[356774410,1743155433765,-151.0,0.0004,14]
[356774411,1743155433774,-151.0,0.0004,14]
[356774412,1743155433784,-151.0,0.0004,14]
[356774413,1743155433794,-151.0,0.0004,14]
[356774414,1743155433803,-151.0,0.0004,14]
[356774415,1743155433813,-151.0,0.0004,14]
[356774416,1743155433823,-291.433169,0.0004,14]
[356774417,1743155433833,-291.433169,0.0004,14]
[356774418,1743155433842,-151.0,0.0004,14]
[356774419,1743155433853,-151.0,0.0004,14]
[356774420,1743155433863,-194.169963,0.0004,14]
[356774421,1743155433872,-151.0,0.0004,14]
[356774422,1743155433883,-151.0,0.0004,14]
[356774423,1743155433892,-151.0,0.0004,14]
[356774424,1743155433903,-500.0,0.0004023,5]
[356774425,1743155433913,-500.0,0.0004023,5]
[356774426,1743155433922,-498.7944,0.00040718,5]
[356774427,1743155433931,-630.8002256,0.00040723,5]
[356774428,1743155433941,-601.68,0.00040929,2]
[356774429,1743155433951,-1289.0,0.0004098,5]
[356774430,1743155433960,-151.0,0.0004098,14]
[356774431,1743155433970,-151.0,0.0004098,14]
[356774432,1743155433980,-151.0,0.0004098,14]
[356774433,1743155433990,-17693.0090363,0.0004099,3]
[356774434,1743155434000,-151.0,0.0004099,14]
[356774435,1743155434010,-151.0,0.0004099,14]
[356774436,1743155434020,-1147.921999,0.0004099,14]
[356774437,1743155434030,-1147.921999,0.0004099,14]
[356774438,1743155434168,-150.72,0.0004099,2]
[356774439,1743155434179,-151.0,0.0004099,14]
[356774440,1743155434189,-300.0,0.00040999,10]
[356774441,1743155434200,-21701.45959539,0.00041,5]
[356774442,1743155434211,-151.0,0.00041,14]
[356774443,1743155434220,-151.0,0.00041,14]
[356774444,1743155434231,-151.0,0.00041,14]
[356774445,1743155434240,-151.0,0.00041,14]
[356774446,1743155434250,-151.0,0.00041,14]
[356774447,1743155434260,-151.0,0.00041,14]
[356774448,1743155434270,-151.0,0.00041,14]
[356774449,1743155434281,-151.0,0.00041,14]
[356774450,1743155434292,-151.0,0.00041,14]
[356774451,1743155434303,-151.0,0.00041,14]
[356774452,1743155434313,-151.0,0.00041,14]
[356774453,1743155434323,-285.0,0.00041096,90]
[356774454,1743155434333,-175.5,0.00041132,120]
[356774455,1743155434343,-17693.0090363,0.00041225,3]
[356774456,1743155434353,-14896.84171541,0.00041235,2]
[356774457,1743155434363,-151.0,0.00041235,14]
[356774458,1743155434372,-300.616834,0.00041235,14]
[356774459,1743155434382,-151.0,0.00041235,14]
[356774460,1743155434392,-151.0,0.00041235,14]
[356774461,1743155434401,-1553.3687774,0.00041352,15]
[356774462,1743155434411,-155.89,0.00041552,2]
[356774463,1743155434421,-1832.59888786,0.00041676,15]
[356774464,1743155434431,-291.433169,0.0004169,14]
[356774465,1743155434440,-291.433169,0.0004169,14]
[356774466,1743155434450,-151.0,0.0004169,14]
[356774467,1743155434459,-212.2205089,0.000417,4]
[356774468,1743155434469,-17693.0090363,0.0004176,3]
[356774469,1743155434479,-17693.0090363,0.0004176,3]
[356774470,1743155434488,-4999.78987384,0.0004176,3]
[356774471,1743155434497,-150.72,0.0004176,2]
[356774472,1743155434507,-151.0,0.00041761,14]
[356774473,1743155434519,-151.0,0.00041761,14]
[356774474,1743155434529,-1147.921999,0.00041761,14]
[356774475,1743155434538,-1147.921999,0.00041761,14]
[356774476,1743155434548,-151.0,0.00041761,14]
[356774477,1743155434558,-151.0,0.0004177,14]
[356774478,1743155434568,-151.0,0.0004177,14]
[356774479,1743155434578,-295.862027,0.0004177,14]
[356774480,1743155434589,-151.0,0.0004177,14]
[356774481,1743155434599,-151.0,0.0004177,14]
[356774482,1743155434608,-151.0,0.0004177,14]
[356774483,1743155434617,-242.074025,0.0004177,14]
[356774484,1743155434627,-151.0,0.0004177,14]
[356774485,1743155434637,-151.0,0.0004177,14]
[356774486,1743155434646,-35386.0180725,0.0004177,3]
[356774487,1743155434656,-12499.4746846,0.0004177,3]
[356774488,1743155434665,-300.0,0.00041779,30]
[356774489,1743155434675,-151.0,0.00041779,14]
[356774490,1743155434684,-151.0,0.00041779,14]
[356774491,1743155434694,-151.0,0.00041779,14]
[356774492,1743155434704,-316.42896347,0.00041779,30]
[356774493,1743155434713,-151.0,0.0004178,14]
[356774494,1743155434723,-213.168459,0.0004178,14]
[356774495,1743155434732,-151.0,0.0004178,14]
[356774496,1743155434741,-291.433169,0.0004178,14]
[356774497,1743155434750,-291.433169,0.0004178,14]
[356774498,1743155434760,-151.0,0.0004178,14]
[356774499,1743155434769,-151.0,0.0004178,14]
[356774500,1743155434778,-151.0,0.0004178,14]
[356774501,1743155434787,-151.0,0.0004178,14]
[356774502,1743155434796,-151.0,0.0004178,14]
[356774503,1743155434806,-1147.921999,0.0004178,14]
[356774504,1743155434815,-1147.921999,0.0004178,14]
[356774505,1743155434824,-151.0,0.0004178,14]
[356774506,1743155434834,-30692.27247454,0.0004178,3]
[356774507,1743155434938,-1776.2945202,0.0004178,3]
[356774508,1743155434953,-38303.46915036,0.0004178,3]
[356774509,1743155434962,-17499.2645584,0.0004178,3]
[356774510,1743155434972,-150.72,0.0004178,2]
[356774511,1743155434981,-156.95641595,0.00041789,120]
[356774512,1743155434991,-151.0,0.0004179,14]
[356774513,1743155434999,-207.522527,0.0004179,14]
[356774514,1743155435009,-151.0,0.0004179,14]
[356774515,1743155435018,-151.0,0.0004179,14]
[356774516,1743155435028,-151.0,0.0004179,14]
[356774517,1743155435037,-151.0,0.0004179,14]
[356774518,1743155435046,-151.0,0.0004179,14]
[356774519,1743155435056,-151.0,0.0004179,14]
[356774520,1743155435065,-151.0,0.0004179,14]
[356774521,1743155435074,-151.0,0.0004179,14]
[356774522,1743155435084,-301.258433,0.0004179,14]
[356774523,1743155435093,-151.0,0.0004179,14]
[356774524,1743155435102,-151.0,0.0004179,14]
[356774525,1743155435112,-151.0,0.0004179,14]
[356774526,1743155435121,-291.433169,0.0004179,14]
[356774527,1743155435130,-291.433169,0.0004179,14]
[356774528,1743155435139,-151.0,0.0004179,14]
[356774529,1743155435149,-123851.063254,0.0004179,3]
[356774530,1743155435159,-39998.3189907,0.0004179,3]
[356774531,1743155435168,-210.045943,0.0004179,14]
[356774532,1743155435177,-151.0,0.0004179,14]
[356774533,1743155435187,-151.0,0.0004179,14]
[356774534,1743155435196,-151.0,0.0004179,14]
[356774535,1743155435205,-1147.921999,0.0004179,14]
[356774536,1743155435215,-1147.921999,0.0004179,14]
[356774537,1743155435224,-150.72,0.0004179,2]
[356774538,1743155435233,-150.72,0.0004179,2]
[356774539,1743155435243,-838.73667416,0.0004179,7]
[356774540,1743155435252,-235.890984,0.0004179,14]
[356774541,1743155435261,-152.76451564,0.00041799,7]
[356774542,1743155435271,-16744.07975328,0.000418,90]
[356774544,1743155437631,-85.0839666,0.000418,90]
[356774545,1743155437647,-567.49999945,0.000418,90]
[356774546,1743155437658,-832.25,0.000418,90]
[356774547,1743155437669,-2943.84242347,0.000418,90]
[356774548,1743155437681,-5508.92049053,0.000418,90]
[356774549,1743155437697,-3403.5597134,0.000418,90]
[356774550,1743155437707,-5130.32866984,0.000418,90]
[356774551,1743155437718,-5712.05526651,0.000418,90]
[356774552,1743155437799,-119945.40617473,0.000418,90]
[356774553,1743155437810,-543.48961775,0.000418,90]
[356774554,1743155437864,-318.90485995,0.000418,90]
[356774555,1743155437937,-818.775,0.000418,90]
[356774565,1743155440375,-0.01813534,0.00020454,2]
[356774568,1743155440387,-225.37195241,0.00020454,2]
[356774569,1743155440396,-9461.18127679,0.000418,90]
[356774570,1743155440407,-1356.31996674,0.000418,90]
[356774571,1743155440418,-259.71546597,0.000418,90]
[356774572,1743155440429,-302.06161444,0.000418,90]
[356774573,1743155440440,-1508.16,0.000418,90]
[356774597,1743155442728,-1648.35826467,0.000418,90]
[356774599,1743155442784,-846.0,0.000418,90]
[356774600,1743155442796,-495.58079881,0.000418,90]
[356774603,1743155444027,-71568.42667707,0.000418,90]
[356774604,1743155444037,-151.0,0.000418,14]
[356774605,1743155444047,-151.0,0.000418,14]
[356774606,1743155444058,-176.176175,0.000418,14]
[356774607,1743155444068,-151.0,0.000418,14]
[356774608,1743155444077,-151.0,0.000418,14]
[356774609,1743155444088,-151.0,0.000418,14]
[356774610,1743155444097,-291.433169,0.000418,14]
[356774611,1743155444107,-291.433169,0.000418,14]
[356774612,1743155444117,-151.0,0.000418,14]
[356774613,1743155444126,-151.0,0.000418,14]
[356774614,1743155444136,-151.0,0.000418,14]
[356774615,1743155444147,-151.0,0.000418,14]
[356774616,1743155444157,-1147.921999,0.000418,14]
[356774617,1743155444166,-1147.921999,0.000418,14]
[356774618,1743155444176,-17693.0090363,0.00041969,3]
[356774619,1743155444186,-4999.78987384,0.00041969,3]
[356774620,1743155444196,-539.25463589,0.00041989,120]
[356774621,1743155444206,-150.0,0.00041989,30]
[356774622,1743155444215,-206.150264,0.00041999,14]
[356774623,1743155444225,-1196.25528393,0.00042,2]
[356774624,1743155444237,-443.4506406,0.00042,2]
[356774625,1743155444248,-150.54678527,0.00042,2]
[356774626,1743155444258,-386.80321473,0.00042,2]
[356774627,1743155444269,-1320.80219899,0.00042,2]
[356774628,1743155444281,-292.39458628,0.00042,2]
[356774629,1743155444291,-270.0,0.00042,120]
[356774630,1743155444301,-1000.0,0.00042,2]
[356774631,1743155444310,-164.15366082,0.00042848,3]
[356774632,1743155444322,-2335.7412761,0.00042848,3]
[356774633,1743155444331,-684.22629248,0.00042857,3]
[356774634,1743155444343,-4200.04995,0.00042857,3]
[356774635,1743155444359,-296.21242944,0.00042857,3]
[356774636,1743155444370,-1472.28813096,0.00042857,3]
[356774637,1743155444381,-1711.87058023,0.00042857,3]
[356774638,1743155444438,-1364.8550249,0.00042857,3]
[356774639,1743155444452,-270.07733967,0.00042857,3]
[356774640,1743155444462,-151.0,0.00042867,14]
[356774641,1743155444472,-127.97266033,0.00042867,14]
[356774656,1743155445611,-79.71665767,0.00042867,14]
[356774657,1743155445620,-291.433169,0.00042867,14]
[356774658,1743155445629,-291.433169,0.00042867,14]
[356774659,1743155445638,-151.0,0.00042867,14]
[356774660,1743155445648,-151.0,0.00042868,14]
[356774661,1743155445658,-151.0,0.00042868,14]
[356774662,1743155445667,-299.353909,0.00042877,14]
[356774663,1743155445683,-150.72,0.00042877,2]
[356774664,1743155445692,-219.064945,0.00042878,14]
[356774665,1743155445701,-907.4160021,0.00042887,8]
[356774666,1743155445711,-15002.92218482,0.00042887,8]
[356774667,1743155445737,-594.97552424,0.00042887,8]
[356774668,1743155445833,-4276.0,0.00042887,8]
[356774669,1743155445891,-7999.95787752,0.00042887,8]
[356774686,1743155776701,-2780.193581,0.00021854,2]
[356774687,1743155776724,-7219.806419,0.00021964,2]
[356774745,1743156631846,-300.84,0.00020046,2]
[356774746,1743156631855,-1069.43702611,0.00021964,2]
[356774747,1743156631866,-641.60804426,0.00021964,2]
[356774748,1743156632007,-2922.76870811,0.00021964,2]
[356774755,1743156637856,-438.92440893,0.00021964,2]
[356774756,1743156637907,-6192.94391875,0.00021964,2]
[356774766,1743156639947,-410.77993,0.00021964,2]
[356774767,1743156640109,-678.90691369,0.00021964,2]
[356774768,1743156640214,-4324.82463115,0.00021964,2]
[356774769,1743156640224,-300.84,0.0002231,2]
[356774770,1743156640234,-200.0,0.00023,2]
[356774771,1743156640243,-300.84,0.00024574,2]
[356774772,1743156640252,-250.0,0.00025,2]
[356774773,1743156640262,-300.84,0.00026838,2]
[356774774,1743156640271,-157.7,0.00026849,2]
[356774775,1743156640281,-300.0,0.00027,2]
[356774776,1743156640290,-300.84,0.00029102,2]
[356774777,1743156640300,-300.84,0.00031366,2]
[356774778,1743156640309,-311.61644986,0.00032612,120]
[356774779,1743156640319,-157.7,0.00032646,2]
[356774780,1743156640329,-300.84,0.0003363,2]
[356774781,1743156640339,-155.89,0.00035616,2]
[356774782,1743156640348,-155.93,0.0003563,2]
[356774783,1743156640358,-300.84,0.00035893,2]
[356774784,1743156640367,-250.0,0.00038049,2]
[356774785,1743156640376,-300.84,0.00038157,2]
[356774786,1743156640386,-157.7,0.00038443,2]
[356774787,1743156640396,-247.99,0.00038717,2]
[356774788,1743156640405,-175.5,0.00038726,120]
[356774789,1743156640414,-150.0,0.00038979,7]
[356774790,1743156640424,-300.84,0.00040421,2]
[356774791,1743156640433,-1923.0,0.00041096,90]
[356774792,1743156640442,-155.89,0.00041553,2]
[356774793,1743156640452,-366.51977759,0.00041893,15]
[356774794,1743156640461,-310.67375548,0.00041893,15]
[356774795,1743156640470,-162.18215287,0.00041893,28]
[356774796,1743156640479,-178.0,0.00041893,4]
[356774797,1743156640488,-238.69164622,0.000419,120]
[356774798,1743156640498,-941.81233188,0.000419,14]
[356774799,1743156640507,-500.0,0.00041973,2]
[356774800,1743156640516,-208.59359887,0.00041979,31]
[356774801,1743156640526,-1579.63621602,0.0004198,2]
[356774802,1743156640535,-6895.18216886,0.0004198,3]
[356774803,1743156640547,-10986.77463015,0.0004198,3]
[356774804,1743156640558,-1328.36405114,0.0004198,3]
[356774805,1743156640569,-360.3824649,0.0004198,3]
[356774806,1743156640580,-10822.67097391,0.0004198,3]
[356774808,1743156640591,-672.94865907,0.0004198,3]
[356774820,1743156643845,-250.10485488,0.0004198,3]
[356774821,1743156643856,-6745.47071883,0.0004198,3]
[356774836,1743156645735,-529.33340726,0.0004198,3]
[356774872,1743157230259,1456.23599197,0.00015,10]
[356774887,1743157520428,1217.75396529,9e-05,2]
[356774890,1743157537326,4572.17118977,8e-05,2]
[356774896,1743157563768,7299.96573875,8e-05,2]
[356774903,1743157618816,158.07644563,0.0001,2]
[356774909,1743157629516,973.62060855,9.14e-05,2]
[356774916,1743157648889,320.7062638,0.0001,2]
[356774917,1743157676653,2623.85616325,0.0001,2]
[356774918,1743157686734,209.94174519,9.5e-05,2]
[356774919,1743157691065,150.0,0.0001,2]
[356774920,1743157713199,2581.59208507,9.828e-05,2]
[356774921,1743157714558,215.46370513,0.0001,2]
[356774941,1743157837922,-162.18215287,0.000149,2]
[356774942,1743157837931,-329.86779984,0.000149,2]
[356774943,1743157837942,-354.3919275,0.0001499,2]
[356774944,1743157837977,-204.76585527,0.0001499,2]
[356774945,1743157837987,-3553.59400803,0.00015,10]
[356774946,1743157837997,-66983.05580303,0.00015,2]
[356774947,1743157838137,-4902.32531061,0.00015,2]
[356774959,1743157840273,-1686.55332841,0.00015,2]
[356774960,1743157840284,-5670.99363828,0.00015,2]
[356774961,1743157840295,-18783.83166582,0.00015,2]
[356774971,1743157843047,-259.472886,0.00015,2]
[356774972,1743157843765,-395.412005,0.00015,2]
[356774973,1743157843776,-1796.77368924,0.00015,2]
[356774974,1743157843818,-225.39008775,0.00015,2]
[356774976,1743157846062,-528.58070319,0.00015,2]
[356774977,1743157846087,-357.56836613,0.00015,2]
[356774978,1743157846099,-811.3,0.00015,2]
[356774979,1743157846156,-2417.182,0.00015,2]
[356774980,1743157846212,-10955.81092486,0.00015,2]
[356774982,1743157870150,-158.38440415,0.00014999,2]
[356774993,1743157922075,-244.78187335,0.0001485,2]
[356774994,1743157933229,-150.0,0.0001485,2]
[356775001,1743157990594,-150.98995775,0.00014799,2]
[356775002,1743157994354,-2.20313527,0.00014799,2]
[356775003,1743157994378,-412.7494395,0.0001485,2]
[356775006,1743158014248,-2028.99878211,0.0001485,2]
[356775007,1743158014271,-250.00000001,0.00014899,2]
[356775008,1743158014293,-478.72480518,0.00014999,2]
[356775009,1743158014317,-150.0,0.00014999,2]
[356775010,1743158014343,-97092.2764127,0.00015,2]
[356775011,1743158014980,-368.22971684,0.00015,2]
[356775012,1743158015935,-100000.0,0.00015,2]
[356775013,1743158017402,-100000.0,0.00015,2]
[356775015,1743158021246,-100000.0,0.00015,2]
[356775016,1743158021692,-100000.0,0.00015,2]
[356775017,1743158022786,-100000.0,0.00015,2]
[356775018,1743158024427,-229.87709353,0.00015,2]
[356775020,1743158050515,-151.0,0.00014999,2]
[356775021,1743158050539,-99849.0,0.00015,2]
[356775022,1743158051153,-229.87709353,0.00015,2]
[356775023,1743158057827,-150.0,0.00015,2]
[356775024,1743158064825,-3300.0,0.00015,2]
[356775026,1743158121240,-50000.0,0.00015,2]
[356775027,1743158122876,-50000.0,0.00015,2]
[356775028,1743158123780,-50000.0,0.00015,2]
[356775029,1743158124316,-50000.0,0.00015,2]
[356775030,1743158124703,-50000.0,0.00015,2]
[356775031,1743158126449,-50000.0,0.00015,2]
[356775032,1743158132775,-10650.0,0.00015,2]
[356775033,1743158173949,491.35893276,0.0002122,14]
[356775034,1743158188484,49818.0,0.00018,14]
[356775035,1743158190089,-150.0,0.00014999,2]
[356775036,1743158190113,-99850.0,0.00015,2]
[356775037,1743158190922,-100000.0,0.00015,2]
[356775038,1743158195087,-100000.0,0.00015,2]
[356775039,1743158195667,-100000.0,0.00015,2]
[356775040,1743158196333,-100000.0,0.00015,2]
[356775041,1743158196999,-100000.0,0.00015,2]
[356775042,1743158200005,-100000.0,0.00015,2]
[356775043,1743158205804,-20300.0,0.00015,2]
[356775044,1743158236085,-161.69221938,0.000149,2]
[356775045,1743158303386,-362.5994954,0.000149,2]
[356775046,1743158303411,-61596.05958787,0.00015,2]
[356775047,1743158303433,-38041.34091673,0.00015,2]
[356775048,1743158304124,-100000.0,0.00015,2]
[356775049,1743158305003,-100000.0,0.00015,2]
[356775050,1743158315166,-67050.0,0.00015,2]
[356775051,1743158593738,-386.71450965,0.00014695,2]
[356775061,1743158879128,-300.0,0.00015,2]
[356775062,1743158881160,-300.0,0.00015,2]
[356775063,1743158883782,-300.0,0.00015,2]
[356775072,1743158996685,-150.0,0.00015,2]
[356775075,1743159032087,-541.345,0.00015,2]
[356775076,1743159032099,-7632.51379128,0.00015,2]
[356775077,1743159032108,-386.71450965,0.00015335,2]
[356775078,1743159032118,-587.0,0.00023096,2]
[356775079,1743159032127,-5554.28375114,0.000249,2]
[356775080,1743159032138,-3468.83624886,0.000249,2]
[356775081,1743159032147,-250.0,0.00025,2]
[356775082,1743159032156,-288.21,0.00026743,14]
[356775083,1743159032165,-158.66,0.00026849,2]
[356775084,1743159032174,-301.84,0.00026849,2]
[356775085,1743159032183,-300.0,0.00027,2]
[356775086,1743159032193,-350.0,0.00029,2]
[356775087,1743159032202,-2028.64404083,0.00030889,2]
[356775088,1743159032213,-1833.59609436,0.00030889,2]
[356775089,1743159032423,-128.98099552,0.00030889,2]
[356775090,1743159032434,-1410.54215506,0.00030889,2]
[356775091,1743159032445,-1062.93987416,0.00030889,2]
[356775092,1743159032455,-6972.54859209,0.000309,2]
[356775093,1743159032466,-681.5968828,0.000309,2]
[356775094,1743159032477,-284.23252147,0.000309,2]
[356775095,1743159032490,-20707.4004044,0.000309,2]
[356775096,1743159032501,-950.92383236,0.000309,2]
[356775097,1743159032519,-7211.0,0.000309,2]
[356775099,1743159032534,-1215.98130136,0.000309,2]
[356775100,1743159032547,-1770.0665151,0.000309,2]
[356775101,1743159032559,-1073.51207392,0.000309,2]
[356775102,1743159032569,-2383.91013201,0.000309,2]
[356775109,1743159038054,-8834.9608706,0.000309,2]
[356775110,1743159038066,-6342.41202674,0.000309,2]
[356775111,1743159038159,-1563.46598488,0.000309,2]
[356775112,1743159038214,-318.91909672,0.000309,2]
[356775113,1743159038225,-311.184893,0.000309,2]
[356775114,1743159038235,-4975.35285482,0.000309,2]
[356775115,1743159038267,-2300.80000002,0.000309,2]